[Event "Titled Tuesday Blitz August 08 Early 2023"]
[White "Rustemov, Alexander"]
[Black "Tatarinov, Dmitry"]
[WhiteFideId "4119002"]
[BlackFideId "24160067"]
[WhiteElo "2842"]
[BlackElo "2584"]
[Result "1/2-1/2"]
[Round "2"]
[TimeControl "180+1"]
[Date "2023.08.08"]
[WhiteClock "0:00:05"]
[BlackClock "0:00:18"]
[Board "49"]

1. d4 {[%clk 0:03:00]}  Nf6 {[%clk 0:02:59]} 2. c4 {[%clk 0:03:01]}  e6 {[%clk 0:02:59]} 3. Nf3 {[%clk 0:03:01]}  d5 {[%clk 0:02:59]} 4. Nc3 {[%clk 0:03:01]}  dxc4 {[%clk 0:03:00]} 5. e3 {[%clk 0:02:59]}  a6 {[%clk 0:02:59]} 6. a4 {[%clk 0:02:59]}  c5 {[%clk 0:03:00]} 7. Bxc4 {[%clk 0:02:59]}  Nc6 {[%clk 0:03:00]} 8. O-O {[%clk 0:02:58]}  cxd4 {[%clk 0:03:00]} 9. Nxd4 {[%clk 0:02:56]}  Bd7 {[%clk 0:02:58]} 10. b3 {[%clk 0:02:48]}  Bb4 {[%clk 0:02:56]} 11. Bb2 {[%clk 0:02:47]}  Nxd4 {[%clk 0:02:56]} 12. Qxd4 {[%clk 0:02:46]}  Bc6 {[%clk 0:02:57]} 13. Rfd1 {[%clk 0:02:40]}  Qxd4 {[%clk 0:02:57]} 14. Rxd4 {[%clk 0:02:41]}  Bc5 {[%clk 0:02:54]} 15. Rd2 {[%clk 0:02:39]}  Ke7 {[%clk 0:02:54]} 16. Kf1 {[%clk 0:02:31]}  Rhd8 {[%clk 0:02:54]} 17. Rad1 {[%clk 0:02:28]}  Rxd2 {[%clk 0:02:51]} 18. Rxd2 {[%clk 0:02:29]}  Rc8 {[%clk 0:02:52]} 19. Rc2 {[%clk 0:01:43]}  g5 {[%clk 0:02:43]} 20. h3 {[%clk 0:01:42]}  h5 {[%clk 0:02:43]} 21. Bd3 {[%clk 0:01:26]}  Rd8 {[%clk 0:02:35]} 22. Be2 {[%clk 0:01:17]}  g4 {[%clk 0:02:25]} 23. hxg4 {[%clk 0:01:06]}  hxg4 {[%clk 0:02:25]} 24. Nb1 {[%clk 0:01:04]}  Bd6 {[%clk 0:01:33]} 25. Ba3 {[%clk 0:01:04]}  Bxa3 {[%clk 0:01:33]} 26. Nxa3 {[%clk 0:01:04]}  Rh8 {[%clk 0:01:23]} 27. Kg1 {[%clk 0:01:04]}  g3 {[%clk 0:01:03]} 28. fxg3 {[%clk 0:01:00]}  Nd5 {[%clk 0:01:00]} 29. Nc4 {[%clk 0:00:55]}  Nb4 {[%clk 0:00:59]} 30. Rd2 {[%clk 0:00:53]}  Bd5 {[%clk 0:00:58]} 31. Bf3 {[%clk 0:00:49]}  Bxc4 {[%clk 0:00:56]} 32. bxc4 {[%clk 0:00:50]}  b6 {[%clk 0:00:56]} 33. Kf2 {[%clk 0:00:44]}  Rc8 {[%clk 0:00:55]} 34. Rd4 {[%clk 0:00:43]}  Rc5 {[%clk 0:00:49]} 35. g4 {[%clk 0:00:37]}  Ra5 {[%clk 0:00:49]} 36. Bd1 {[%clk 0:00:37]}  Nc6 {[%clk 0:00:49]} 37. Rd2 {[%clk 0:00:35]}  Ne5 {[%clk 0:00:49]} 38. Be2 {[%clk 0:00:31]}  Rxa4 {[%clk 0:00:49]} 39. Rb2 {[%clk 0:00:32]}  Nd7 {[%clk 0:00:48]} 40. Kf3 {[%clk 0:00:18]}  Ra5 {[%clk 0:00:47]} 41. Kf4 {[%clk 0:00:17]}  Rc5 {[%clk 0:00:47]} 42. Ra2 {[%clk 0:00:17]}  a5 {[%clk 0:00:47]} 43. g5 {[%clk 0:00:17]}  Ne5 {[%clk 0:00:45]} 44. Rb2 {[%clk 0:00:15]}  Nxc4 {[%clk 0:00:45]} 45. Bxc4 {[%clk 0:00:09]}  Rxc4+ {[%clk 0:00:46]} 46. e4 {[%clk 0:00:10]}  Rb4 {[%clk 0:00:45]} 47. Rc2 {[%clk 0:00:10]}  a4 {[%clk 0:00:45]} 48. Rc7+ {[%clk 0:00:10]}  Kf8 {[%clk 0:00:42]} 49. Ke5 {[%clk 0:00:10]}  Kg7 {[%clk 0:00:42]} 50. Ra7 {[%clk 0:00:09]}  Rb5+ {[%clk 0:00:42]} 51. Kf4 {[%clk 0:00:09]}  Ra5 {[%clk 0:00:43]} 52. Rc7 {[%clk 0:00:05]}  a3 {[%clk 0:00:43]} 53. Rc1 {[%clk 0:00:06]}  a2 {[%clk 0:00:43]} 54. Ra1 {[%clk 0:00:07]}  b5 {[%clk 0:00:44]} 55. Ke3 {[%clk 0:00:07]}  b4 {[%clk 0:00:45]} 56. Kd3 {[%clk 0:00:07]}  b3 {[%clk 0:00:45]} 57. Kc3 {[%clk 0:00:08]}  Rb5 {[%clk 0:00:44]} 58. Kb2 {[%clk 0:00:08]}  Kg6 {[%clk 0:00:45]} 59. Rf1 {[%clk 0:00:08]}  Kxg5 {[%clk 0:00:45]} 60. Rxf7 {[%clk 0:00:08]}  Ra5 {[%clk 0:00:44]} 61. Rf1 {[%clk 0:00:08]}  Kg4 {[%clk 0:00:36]} 62. Ra1 {[%clk 0:00:08]}  Kg3 {[%clk 0:00:36]} 63. Kxb3 {[%clk 0:00:07]}  Kxg2 {[%clk 0:00:33]} 64. e5 {[%clk 0:00:07]}  Kf3 {[%clk 0:00:32]} 65. Kb2 {[%clk 0:00:07]}  Rxe5 {[%clk 0:00:30]} 66. Rf1+ {[%clk 0:00:06]}  Kg2 {[%clk 0:00:29]} 67. Rf8 {[%clk 0:00:05]}  Re2+ {[%clk 0:00:28]} 68. Ka1 {[%clk 0:00:05]}  e5 {[%clk 0:00:20]} 69. Rf2+ {[%clk 0:00:05]}  Kxf2 {[%clk 0:00:18]} 1/2-1/2


[Site "https://www.chess.com"]

[Event "Titled Tuesday Blitz August 08 Early 2023"]
[White "Prokofiev, Valentyn"]
[Black "Ibarra Jerez, Jose Carlos"]
[WhiteFideId "14160161"]
[BlackFideId "2226332"]
[WhiteElo "2584"]
[BlackElo "2841"]
[Result "1/2-1/2"]
[Round "2"]
[TimeControl "180+1"]
[Date "2023.08.08"]
[WhiteClock "0:00:08"]
[BlackClock "0:00:02"]
[Board "50"]

1. Nf3 {[%clk 0:02:55]}  d5 {[%clk 0:02:59]} 2. c4 {[%clk 0:02:55]}  d4 {[%clk 0:02:59]} 3. b4 {[%clk 0:02:54]}  g5 {[%clk 0:02:57]} 4. Nxg5 {[%clk 0:02:49]}  e5 {[%clk 0:02:57]} 5. Ne4 {[%clk 0:02:49]}  Bxb4 {[%clk 0:02:41]} 6. a3 {[%clk 0:02:45]}  Bf8 {[%clk 0:02:39]} 7. d3 {[%clk 0:02:43]}  f5 {[%clk 0:02:39]} 8. Ng3 {[%clk 0:02:16]}  Nf6 {[%clk 0:02:30]} 9. e4 {[%clk 0:02:11]}  dxe3 {[%clk 0:02:19]} 10. fxe3 {[%clk 0:02:06]}  Nc6 {[%clk 0:02:20]} 11. Be2 {[%clk 0:02:05]}  Bc5 {[%clk 0:02:20]} 12. Bh5+ {[%clk 0:02:03]}  Ke7 {[%clk 0:02:15]} 13. Nc3 {[%clk 0:01:57]}  Rg8 {[%clk 0:02:13]} 14. Bf3 {[%clk 0:01:54]}  Be6 {[%clk 0:02:02]} 15. O-O {[%clk 0:01:48]}  f4 {[%clk 0:01:57]} 16. Nge4 {[%clk 0:01:48]}  Nxe4 {[%clk 0:01:53]} 17. Nxe4 {[%clk 0:01:47]}  Bxe3+ {[%clk 0:01:51]} 18. Bxe3 {[%clk 0:01:46]}  fxe3 {[%clk 0:01:52]} 19. Qe2 {[%clk 0:01:40]}  Qd4 {[%clk 0:01:49]} 20. Rab1 {[%clk 0:01:26]}  Rab8 {[%clk 0:01:50]} 21. Rfe1 {[%clk 0:01:15]}  b6 {[%clk 0:01:33]} 22. Ng3 {[%clk 0:01:15]}  Nd8 {[%clk 0:01:20]} 23. Be4 {[%clk 0:01:15]}  Bg4 {[%clk 0:01:13]} 24. Qxe3 {[%clk 0:01:11]}  Ne6 {[%clk 0:00:58]} 25. Bd5 {[%clk 0:01:03]}  Qxe3+ {[%clk 0:00:51]} 26. Rxe3 {[%clk 0:01:03]}  Rg5 {[%clk 0:00:47]} 27. Bxe6 {[%clk 0:00:57]}  Kxe6 {[%clk 0:00:44]} 28. d4 {[%clk 0:00:53]}  Rd8 {[%clk 0:00:43]} 29. d5+ {[%clk 0:00:51]}  Ke7 {[%clk 0:00:44]} 30. Ne4 {[%clk 0:00:49]}  Bf5 {[%clk 0:00:37]} 31. Nxg5 {[%clk 0:00:40]}  Bxb1 {[%clk 0:00:38]} 32. Rxe5+ {[%clk 0:00:40]}  Kf6 {[%clk 0:00:38]} 33. Nf3 {[%clk 0:00:41]}  Ba2 {[%clk 0:00:28]} 34. Re6+ {[%clk 0:00:41]}  Kf7 {[%clk 0:00:29]} 35. Ne5+ {[%clk 0:00:34]}  Kf8 {[%clk 0:00:26]} 36. Kf2 {[%clk 0:00:28]}  b5 {[%clk 0:00:26]} 37. Ke3 {[%clk 0:00:20]}  bxc4 {[%clk 0:00:25]} 38. Kd4 {[%clk 0:00:19]}  Rxd5+ {[%clk 0:00:18]} 39. Kxd5 {[%clk 0:00:16]}  c3+ {[%clk 0:00:18]} 40. Kd4 {[%clk 0:00:17]}  Bxe6 {[%clk 0:00:18]} 41. Kxc3 {[%clk 0:00:17]}  Bd5 {[%clk 0:00:16]} 42. g3 {[%clk 0:00:18]}  Ke7 {[%clk 0:00:15]} 43. Kd4 {[%clk 0:00:18]}  Kd6 {[%clk 0:00:14]} 44. Nd3 {[%clk 0:00:19]}  Bg2 {[%clk 0:00:11]} 45. Nc5 {[%clk 0:00:20]}  Kc6 {[%clk 0:00:11]} 46. Ne6 {[%clk 0:00:19]}  Bh3 {[%clk 0:00:09]} 47. Ng5 {[%clk 0:00:18]}  Bf5 {[%clk 0:00:10]} 48. Nf7 {[%clk 0:00:18]}  Kb5 {[%clk 0:00:09]} 49. Kc3 {[%clk 0:00:19]}  Bg6 {[%clk 0:00:07]} 50. Ne5 {[%clk 0:00:19]}  Bf5 {[%clk 0:00:07]} 51. g4 {[%clk 0:00:20]}  Be6 {[%clk 0:00:07]} 52. h4 {[%clk 0:00:20]}  Kc5 {[%clk 0:00:08]} 53. g5 {[%clk 0:00:20]}  Kd5 {[%clk 0:00:09]} 54. Nd3 {[%clk 0:00:20]}  Bf7 {[%clk 0:00:07]} 55. Nb4+ {[%clk 0:00:19]}  Kd6 {[%clk 0:00:07]} 56. Nd3 {[%clk 0:00:18]}  c5 {[%clk 0:00:07]} 57. Nf4 {[%clk 0:00:18]}  Ke5 {[%clk 0:00:07]} 58. Nd3+ {[%clk 0:00:19]}  Kf5 {[%clk 0:00:04]} 59. Nxc5 {[%clk 0:00:19]}  Kg4 {[%clk 0:00:05]} 60. Nb7 {[%clk 0:00:18]}  Kxh4 {[%clk 0:00:04]} 61. Nd6 {[%clk 0:00:19]}  Bd5 {[%clk 0:00:03]} 62. Nc8 {[%clk 0:00:19]}  a6 {[%clk 0:00:03]} 63. Ne7 {[%clk 0:00:19]}  Be6 {[%clk 0:00:03]} 64. g6 {[%clk 0:00:19]}  h5 {[%clk 0:00:02]} 65. g7 {[%clk 0:00:19]}  Kg3 {[%clk 0:00:03]} 66. Kd4 {[%clk 0:00:15]}  h4 {[%clk 0:00:02]} 67. Ke5 {[%clk 0:00:16]}  Bf7 {[%clk 0:00:01]} 68. Kf6 {[%clk 0:00:16]}  Ba2 {[%clk 0:00:02]} 69. Ke5 {[%clk 0:00:15]}  Bf7 {[%clk 0:00:02]} 70. Kf6 {[%clk 0:00:15]}  Bc4 {[%clk 0:00:03]} 71. Ke5 {[%clk 0:00:08]}  Bf7 {[%clk 0:00:02]} 1/2-1/2


[Site "https://www.chess.com"]

[Event "Titled Tuesday Blitz August 08 Early 2023"]
[White "Salinas Herrera, Pablo"]
[Black "Zavgorodniy, Sergiy"]
[WhiteFideId "3407128"]
[BlackFideId "14110148"]
[WhiteElo "2840"]
[BlackElo "2581"]
[Result "0-1"]
[Round "2"]
[TimeControl "180+1"]
[Date "2023.08.08"]
[WhiteClock "0:01:20"]
[BlackClock "0:00:26"]
[Board "51"]

1. d4 {[%clk 0:03:00]}  Nf6 {[%clk 0:02:59]} 2. Nf3 {[%clk 0:03:00]}  d6 {[%clk 0:02:58]} 3. Nbd2 {[%clk 0:02:59]}  Nbd7 {[%clk 0:02:55]} 4. e4 {[%clk 0:02:59]}  e5 {[%clk 0:02:55]} 5. c3 {[%clk 0:02:59]}  c6 {[%clk 0:02:54]} 6. Bd3 {[%clk 0:03:00]}  Be7 {[%clk 0:02:54]} 7. O-O {[%clk 0:03:01]}  O-O {[%clk 0:02:54]} 8. Re1 {[%clk 0:03:01]}  Re8 {[%clk 0:02:50]} 9. Nf1 {[%clk 0:03:02]}  Qc7 {[%clk 0:02:44]} 10. Ng3 {[%clk 0:03:03]}  Nf8 {[%clk 0:02:44]} 11. h3 {[%clk 0:03:03]}  a5 {[%clk 0:02:40]} 12. a4 {[%clk 0:03:03]}  Bd7 {[%clk 0:02:35]} 13. Be3 {[%clk 0:03:04]}  Rad8 {[%clk 0:02:35]} 14. Qd2 {[%clk 0:03:04]}  Bc8 {[%clk 0:02:34]} 15. Rad1 {[%clk 0:03:04]}  Ng6 {[%clk 0:02:32]} 16. Qc2 {[%clk 0:03:03]}  h6 {[%clk 0:02:26]} 17. Bf1 {[%clk 0:03:03]}  Nh7 {[%clk 0:02:18]} 18. Nf5 {[%clk 0:03:02]}  Ng5 {[%clk 0:02:17]} 19. Nxe7+ {[%clk 0:03:02]}  Qxe7 {[%clk 0:02:17]} 20. Nxg5 {[%clk 0:02:52]}  hxg5 {[%clk 0:02:18]} 21. dxe5 {[%clk 0:02:45]}  dxe5 {[%clk 0:02:10]} 22. Bb6 {[%clk 0:02:45]}  Rxd1 {[%clk 0:02:08]} 23. Rxd1 {[%clk 0:02:46]}  Nf4 {[%clk 0:02:00]} 24. Bxa5 {[%clk 0:02:43]}  g4 {[%clk 0:01:59]} 25. hxg4 {[%clk 0:02:41]}  Bxg4 {[%clk 0:01:59]} 26. f3 {[%clk 0:02:36]}  Be6 {[%clk 0:01:57]} 27. Qf2 {[%clk 0:02:28]}  Qg5 {[%clk 0:01:49]} 28. g3 {[%clk 0:02:28]}  g6 {[%clk 0:01:40]} 29. Bb6 {[%clk 0:02:21]}  Nh3+ {[%clk 0:01:32]} 30. Bxh3 {[%clk 0:02:21]}  Bxh3 {[%clk 0:01:33]} 31. Be3 {[%clk 0:02:19]}  Qh5 {[%clk 0:01:21]} 32. Rd6 {[%clk 0:02:13]}  Kg7 {[%clk 0:01:17]} 33. g4 {[%clk 0:02:05]}  Bxg4 {[%clk 0:01:08]} 34. fxg4 {[%clk 0:02:06]}  Qxg4+ {[%clk 0:01:08]} 35. Qg2 {[%clk 0:02:05]}  Qh4 {[%clk 0:01:03]} 36. Bf2 {[%clk 0:02:04]}  Qe7 {[%clk 0:00:59]} 37. Bc5 {[%clk 0:02:04]}  Qh4 {[%clk 0:00:58]} 38. Qf2 {[%clk 0:01:42]}  Qg5+ {[%clk 0:00:54]} 39. Kf1 {[%clk 0:01:29]}  Rh8 {[%clk 0:00:50]} 40. Be3 {[%clk 0:01:29]}  Rh1+ {[%clk 0:00:46]} 41. Ke2 {[%clk 0:01:29]}  Qg4+ {[%clk 0:00:42]} 42. Kd3 {[%clk 0:01:25]}  Qd1+ {[%clk 0:00:38]} 43. Bd2 {[%clk 0:01:25]}  Rh3+ {[%clk 0:00:34]} 44. Kc4 {[%clk 0:01:22]}  Qxa4+ {[%clk 0:00:32]} 45. b4 {[%clk 0:01:22]}  Qa2+ {[%clk 0:00:27]} 46. Kc5 {[%clk 0:01:23]}  Qa7+ {[%clk 0:00:28]} 47. Kc4 {[%clk 0:01:20]}  Qxf2 {[%clk 0:00:26]} 0-1


[Site "https://www.chess.com"]

[Event "Titled Tuesday Blitz August 08 Early 2023"]
[White "Eynullayev, Altay"]
[Black "Kushko, Dmitriy"]
[WhiteFideId "13413562"]
[BlackFideId "14162261"]
[WhiteElo "2578"]
[BlackElo "2837"]
[Result "0-1"]
[Round "2"]
[TimeControl "180+1"]
[Date "2023.08.08"]
[WhiteClock "0:00:50"]
[BlackClock "0:01:21"]
[Board "52"]

1. e4 {[%clk 0:03:00]}  g6 {[%clk 0:03:00]} 2. d4 {[%clk 0:02:56]}  Bg7 {[%clk 0:02:59]} 3. Nc3 {[%clk 0:02:55]}  d6 {[%clk 0:03:00]} 4. Bg5 {[%clk 0:02:55]}  a6 {[%clk 0:02:59]} 5. a4 {[%clk 0:02:55]}  Nc6 {[%clk 0:02:58]} 6. Nge2 {[%clk 0:02:55]}  h6 {[%clk 0:02:49]} 7. Be3 {[%clk 0:02:51]}  e5 {[%clk 0:02:45]} 8. d5 {[%clk 0:02:51]}  Nce7 {[%clk 0:02:45]} 9. Qd2 {[%clk 0:02:49]}  f5 {[%clk 0:02:45]} 10. f3 {[%clk 0:02:50]}  Nf6 {[%clk 0:02:44]} 11. O-O-O {[%clk 0:02:41]}  b5 {[%clk 0:02:37]} 12. Qd3 {[%clk 0:02:22]}  fxe4 {[%clk 0:02:11]} 13. fxe4 {[%clk 0:02:22]}  Ng4 {[%clk 0:02:11]} 14. Bd2 {[%clk 0:02:22]}  Nf2 {[%clk 0:02:09]} 15. Qe3 {[%clk 0:02:15]}  Nxh1 {[%clk 0:02:08]} 16. Qg1 {[%clk 0:02:15]}  bxa4 {[%clk 0:02:00]} 17. Nxa4 {[%clk 0:02:13]}  Bd7 {[%clk 0:01:57]} 18. Nec3 {[%clk 0:02:10]}  O-O {[%clk 0:01:50]} 19. Qxh1 {[%clk 0:02:09]}  Nc8 {[%clk 0:01:41]} 20. Be2 {[%clk 0:01:25]}  Nb6 {[%clk 0:01:40]} 21. Nxb6 {[%clk 0:01:25]}  cxb6 {[%clk 0:01:40]} 22. h3 {[%clk 0:01:25]}  b5 {[%clk 0:01:37]} 23. Bg4 {[%clk 0:01:24]}  Rc8 {[%clk 0:01:27]} 24. Qe1 {[%clk 0:01:19]}  Bxg4 {[%clk 0:01:21]} 25. hxg4 {[%clk 0:00:50]}  Qc7 {[%clk 0:01:21]} 0-1


[Site "https://www.chess.com"]

[Event "Titled Tuesday Blitz August 08 Early 2023"]
[White "Unat, Can Haktan"]
[Black "Bharath Subramaniyam H"]
[WhiteFideId "6398073"]
[BlackFideId "46634827"]
[WhiteElo "2574"]
[BlackElo "2826"]
[Result "0-1"]
[Round "2"]
[TimeControl "180+1"]
[Date "2023.08.08"]
[WhiteClock "0:00:57"]
[BlackClock "0:01:16"]
[Board "54"]

1. d4 {[%clk 0:02:57]}  d5 {[%clk 0:02:58]} 2. Nf3 {[%clk 0:02:57]}  c6 {[%clk 0:02:59]} 3. c4 {[%clk 0:02:57]}  Nf6 {[%clk 0:02:59]} 4. Nc3 {[%clk 0:02:56]}  dxc4 {[%clk 0:03:00]} 5. Qc2 {[%clk 0:02:56]}  b5 {[%clk 0:02:57]} 6. e4 {[%clk 0:02:57]}  e6 {[%clk 0:02:55]} 7. Be2 {[%clk 0:02:56]}  a6 {[%clk 0:02:49]} 8. O-O {[%clk 0:02:56]}  Be7 {[%clk 0:02:47]} 9. Bg5 {[%clk 0:02:54]}  h6 {[%clk 0:02:45]} 10. Bh4 {[%clk 0:02:54]}  O-O {[%clk 0:02:39]} 11. Rad1 {[%clk 0:02:50]}  Nbd7 {[%clk 0:02:34]} 12. d5 {[%clk 0:02:50]}  cxd5 {[%clk 0:02:28]} 13. exd5 {[%clk 0:02:50]}  exd5 {[%clk 0:02:27]} 14. Nd4 {[%clk 0:02:25]}  Ne5 {[%clk 0:01:58]} 15. Bg3 {[%clk 0:02:21]}  Ng6 {[%clk 0:01:58]} 16. Nc6 {[%clk 0:02:20]}  Qb6 {[%clk 0:01:56]} 17. Nxe7+ {[%clk 0:02:06]}  Nxe7 {[%clk 0:01:57]} 18. Bf3 {[%clk 0:02:07]}  Be6 {[%clk 0:01:55]} 19. Rfe1 {[%clk 0:02:06]}  Rad8 {[%clk 0:01:52]} 20. Bh4 {[%clk 0:02:05]}  g5 {[%clk 0:01:46]} 21. Bg3 {[%clk 0:02:04]}  d4 {[%clk 0:01:45]} 22. Ne4 {[%clk 0:02:01]}  Nxe4 {[%clk 0:01:43]} 23. Bxe4 {[%clk 0:01:56]}  d3 {[%clk 0:01:39]} 24. Qc3 {[%clk 0:01:52]}  f6 {[%clk 0:01:32]} 25. Bxd3 {[%clk 0:01:35]}  Rxd3 {[%clk 0:01:28]} 26. Rxd3 {[%clk 0:01:34]}  cxd3 {[%clk 0:01:29]} 27. Bc7 {[%clk 0:01:34]}  Nd5 {[%clk 0:01:18]} 28. Bxb6 {[%clk 0:01:30]}  Nxc3 {[%clk 0:01:18]} 29. bxc3 {[%clk 0:01:28]}  Bxa2 {[%clk 0:01:19]} 30. Bd4 {[%clk 0:01:08]}  Bb3 {[%clk 0:01:17]} 31. Be3 {[%clk 0:01:05]}  Re8 {[%clk 0:01:18]} 32. Bd2 {[%clk 0:01:04]}  Rxe1+ {[%clk 0:01:18]} 33. Bxe1 {[%clk 0:01:05]}  a5 {[%clk 0:01:19]} 34. c4 {[%clk 0:01:05]}  a4 {[%clk 0:01:17]} 35. cxb5 {[%clk 0:01:01]}  a3 {[%clk 0:01:17]} 36. Bc3 {[%clk 0:01:01]}  a2 {[%clk 0:01:15]} 37. Kf1 {[%clk 0:00:57]}  d2 {[%clk 0:01:16]} 0-1


[Site "https://www.chess.com"]

[Event "Titled Tuesday Blitz August 08 Early 2023"]
[White "JeRoma71"]
[Black "Ince, Taylan Ruzgar"]
[BlackFideId "44513089"]
[WhiteElo "2826"]
[BlackElo "2571"]
[Result "1-0"]
[Round "2"]
[TimeControl "180+1"]
[Date "2023.08.08"]
[WhiteClock "0:00:24"]
[BlackClock "0:00:06"]
[Board "55"]

1. Nf3 {[%clk 0:02:58]}  Nf6 {[%clk 0:02:59]} 2. g3 {[%clk 0:02:58]}  c5 {[%clk 0:02:59]} 3. Bg2 {[%clk 0:02:59]}  g6 {[%clk 0:02:59]} 4. O-O {[%clk 0:03:00]}  Bg7 {[%clk 0:03:00]} 5. c4 {[%clk 0:03:01]}  O-O {[%clk 0:03:00]} 6. Nc3 {[%clk 0:03:01]}  d5 {[%clk 0:03:00]} 7. cxd5 {[%clk 0:03:01]}  Nxd5 {[%clk 0:03:01]} 8. d3 {[%clk 0:03:02]}  Nc6 {[%clk 0:02:49]} 9. Nxd5 {[%clk 0:03:01]}  Qxd5 {[%clk 0:02:50]} 10. Be3 {[%clk 0:03:02]}  Qd6 {[%clk 0:02:50]} 11. Rc1 {[%clk 0:02:58]}  Nd4 {[%clk 0:02:34]} 12. Bxd4 {[%clk 0:02:55]}  cxd4 {[%clk 0:02:31]} 13. Nd2 {[%clk 0:02:54]}  Rb8 {[%clk 0:02:31]} 14. Ne4 {[%clk 0:02:51]}  Qa6 {[%clk 0:02:21]} 15. a3 {[%clk 0:02:48]}  b6 {[%clk 0:02:16]} 16. Qb3 {[%clk 0:02:47]}  Qa5 {[%clk 0:02:10]} 17. Rc7 {[%clk 0:02:44]}  Be6 {[%clk 0:02:02]} 18. Qb4 {[%clk 0:02:44]}  Qxb4 {[%clk 0:01:57]} 19. axb4 {[%clk 0:02:44]}  a5 {[%clk 0:01:57]} 20. b5 {[%clk 0:02:38]}  Rfc8 {[%clk 0:01:53]} 21. Rfc1 {[%clk 0:02:37]}  Bf8 {[%clk 0:01:39]} 22. Nd2 {[%clk 0:02:34]}  Bh6 {[%clk 0:01:24]} 23. f4 {[%clk 0:02:33]}  g5 {[%clk 0:01:24]} 24. Rxc8+ {[%clk 0:02:30]}  Bxc8 {[%clk 0:01:23]} 25. Rc7 {[%clk 0:02:18]}  gxf4 {[%clk 0:01:21]} 26. Nc4 {[%clk 0:02:16]}  fxg3 {[%clk 0:01:19]} 27. hxg3 {[%clk 0:02:17]}  Be6 {[%clk 0:01:19]} 28. Rxe7 {[%clk 0:02:14]}  Bf8 {[%clk 0:01:18]} 29. Rc7 {[%clk 0:02:11]}  Bc5 {[%clk 0:01:14]} 30. Kh2 {[%clk 0:01:54]}  Bxc4 {[%clk 0:01:11]} 31. dxc4 {[%clk 0:01:55]}  Re8 {[%clk 0:01:11]} 32. Bf3 {[%clk 0:01:48]}  Kg7 {[%clk 0:01:04]} 33. Kh3 {[%clk 0:01:44]}  Kg6 {[%clk 0:01:03]} 34. Bd5 {[%clk 0:01:39]}  Rxe2 {[%clk 0:00:57]} 35. Bxf7+ {[%clk 0:01:38]}  Kf6 {[%clk 0:00:58]} 36. b3 {[%clk 0:01:28]}  Re3 {[%clk 0:00:55]} 37. Bh5 {[%clk 0:01:27]}  Rxb3 {[%clk 0:00:53]} 38. Rxh7 {[%clk 0:01:27]}  a4 {[%clk 0:00:41]} 39. Bd1 {[%clk 0:01:22]}  Rb4 {[%clk 0:00:41]} 40. Ra7 {[%clk 0:01:21]}  Rxc4 {[%clk 0:00:35]} 41. Rxa4 {[%clk 0:01:07]}  Rc1 {[%clk 0:00:35]} 42. Bf3 {[%clk 0:01:00]}  d3 {[%clk 0:00:26]} 43. Rf4+ {[%clk 0:01:01]}  Ke5 {[%clk 0:00:20]} 44. Re4+ {[%clk 0:01:00]}  Kf5 {[%clk 0:00:20]} 45. g4+ {[%clk 0:00:52]}  Kg5 {[%clk 0:00:20]} 46. Kg3 {[%clk 0:00:39]}  Rg1+ {[%clk 0:00:13]} 47. Kh2 {[%clk 0:00:36]}  d2 {[%clk 0:00:13]} 48. Re5+ {[%clk 0:00:33]}  Kf4 {[%clk 0:00:13]} 49. Rf5+ {[%clk 0:00:24]}  Ke3 {[%clk 0:00:06]} 50. Kxg1 {[%clk 0:00:24]} 1-0


[Site "https://www.chess.com"]

[Event "Titled Tuesday Blitz August 08 Early 2023"]
[White "Manukyan, Sargis A."]
[Black "Pakleza, Zbigniew"]
[WhiteFideId "13303970"]
[BlackFideId "1119290"]
[WhiteElo "2570"]
[BlackElo "2820"]
[Result "0-1"]
[Round "2"]
[TimeControl "180+1"]
[Date "2023.08.08"]
[WhiteClock "0:00:55"]
[BlackClock "0:00:07"]
[Board "57"]

1. d4 {[%clk 0:03:00]}  d6 {[%clk 0:02:59]} 2. Nf3 {[%clk 0:03:00]}  Bg4 {[%clk 0:02:59]} 3. g3 {[%clk 0:02:58]}  Bxf3 {[%clk 0:02:59]} 4. exf3 {[%clk 0:02:59]}  e6 {[%clk 0:02:57]} 5. Bg2 {[%clk 0:02:59]}  c6 {[%clk 0:02:57]} 6. f4 {[%clk 0:02:58]}  Ne7 {[%clk 0:02:57]} 7. O-O {[%clk 0:02:57]}  g6 {[%clk 0:02:58]} 8. c3 {[%clk 0:02:57]}  Bg7 {[%clk 0:02:58]} 9. Nd2 {[%clk 0:02:57]}  O-O {[%clk 0:02:58]} 10. Re1 {[%clk 0:02:57]}  Nd7 {[%clk 0:02:57]} 11. Nc4 {[%clk 0:02:56]}  d5 {[%clk 0:02:51]} 12. Ne5 {[%clk 0:02:56]}  Rc8 {[%clk 0:02:49]} 13. a4 {[%clk 0:02:55]}  c5 {[%clk 0:02:44]} 14. Nxd7 {[%clk 0:02:48]}  Qxd7 {[%clk 0:02:44]} 15. dxc5 {[%clk 0:02:48]}  Rxc5 {[%clk 0:02:39]} 16. Be3 {[%clk 0:02:48]}  Rc6 {[%clk 0:02:37]} 17. a5 {[%clk 0:02:35]}  a6 {[%clk 0:02:32]} 18. Qa4 {[%clk 0:02:32]}  Qc8 {[%clk 0:02:10]} 19. Rad1 {[%clk 0:02:27]}  Rd8 {[%clk 0:02:06]} 20. Bb6 {[%clk 0:02:25]}  Rd7 {[%clk 0:02:04]} 21. Bf1 {[%clk 0:02:23]}  Nf5 {[%clk 0:01:59]} 22. Qa3 {[%clk 0:02:08]}  Nd6 {[%clk 0:01:46]} 23. Qa4 {[%clk 0:02:05]}  Nc4 {[%clk 0:01:41]} 24. Qb3 {[%clk 0:01:56]}  Nxb6 {[%clk 0:01:36]} 25. axb6 {[%clk 0:01:56]}  Qd8 {[%clk 0:01:27]} 26. c4 {[%clk 0:01:28]}  Rxb6 {[%clk 0:01:24]} 27. Qa4 {[%clk 0:01:28]}  Rxb2 {[%clk 0:00:47]} 28. cxd5 {[%clk 0:01:28]}  exd5 {[%clk 0:00:32]} 29. Rxd5 {[%clk 0:01:24]}  Qb6 {[%clk 0:00:18]} 30. Re8+ {[%clk 0:00:48]}  Bf8 {[%clk 0:00:18]} 31. Rxf8+ {[%clk 0:00:49]}  Kxf8 {[%clk 0:00:19]} 32. Qa3+ {[%clk 0:00:49]}  Kg8 {[%clk 0:00:07]} 33. Rc5 {[%clk 0:00:49]}  Rc7 {[%clk 0:00:01]} 34. Qxb2 {[%clk 0:00:47]}  Qxb2 {[%clk 0:00:01]} 35. Rxc7 {[%clk 0:00:48]}  b5 {[%clk 0:00:02]} 36. Rc8+ {[%clk 0:00:49]}  Kg7 {[%clk 0:00:02]} 37. Rc6 {[%clk 0:00:50]}  a5 {[%clk 0:00:02]} 38. Rb6 {[%clk 0:00:50]}  b4 {[%clk 0:00:03]} 39. Rb7 {[%clk 0:00:51]}  Qc3 {[%clk 0:00:03]} 40. h4 {[%clk 0:00:50]}  b3 {[%clk 0:00:03]} 41. Bg2 {[%clk 0:00:50]}  b2 {[%clk 0:00:04]} 42. Be4 {[%clk 0:00:49]}  Qe1+ {[%clk 0:00:03]} 43. Kh2 {[%clk 0:00:50]}  Qxe4 {[%clk 0:00:03]} 44. Rxb2 {[%clk 0:00:49]}  Qd4 {[%clk 0:00:04]} 45. Ra2 {[%clk 0:00:50]}  a4 {[%clk 0:00:04]} 46. h5 {[%clk 0:00:50]}  gxh5 {[%clk 0:00:04]} 47. f5 {[%clk 0:00:51]}  Qc4 {[%clk 0:00:04]} 48. Rd2 {[%clk 0:00:51]}  a3 {[%clk 0:00:04]} 49. f4 {[%clk 0:00:51]}  a2 {[%clk 0:00:04]} 50. f6+ {[%clk 0:00:52]}  Kxf6 {[%clk 0:00:05]} 51. g4 {[%clk 0:00:52]}  hxg4 {[%clk 0:00:05]} 52. f5 {[%clk 0:00:52]}  Qf4+ {[%clk 0:00:04]} 53. Kg2 {[%clk 0:00:52]}  Qxd2+ {[%clk 0:00:05]} 54. Kg3 {[%clk 0:00:53]}  Qg5 {[%clk 0:00:05]} 55. Kg2 {[%clk 0:00:53]}  Qxf5 {[%clk 0:00:06]} 56. Kh2 {[%clk 0:00:54]}  Qf3 {[%clk 0:00:06]} 57. Kg1 {[%clk 0:00:54]}  a1=Q+ {[%clk 0:00:06]} 58. Kh2 {[%clk 0:00:55]}  Qah1# {[%clk 0:00:07]} 0-1


[Site "https://www.chess.com"]